Cogmind - Beta 10.2 @@@ ROGUE MODE // 2021.12.11 @ 12:27:22 Player: zazuza Result: Destroyed by DAS Turret with DAS Cannon Performance ------------- Evolutions (0) 0 Regions Visited (3) 600 Robots Destroyed (16) 80 Value Destroyed (353) 353 Prototype IDs (0) 0 Alien Tech Used (0) 0 Bonus (0) 0 TOTAL SCORE: 1033 Bonus ------- None Cogmind --------- Core Integrity 0/250 Matter 295/300 Energy 84/100 System Corruption 10% Temperature Cool (0) Movement Rolling (100) Location -10/Exiles Parts ------- > --- POWER (1) -------- (None) > --- PROPULSION (2) --- Compact Wheel > --- UTILITY (2) ------ Large Storage Unit > --- WEAPON (2) ------- (None) > --- INVENTORY (10) --- Improved Heat Sink Sensor Array Experimental Sensor Array Improved Targeting Computer Heavy EM Pulse Gun Grenade Launcher Peak State ------------ > --- POWER ------------ Improved Ion Engine > --- PROPULSION ------- Wheel Compact Wheel > --- UTILITY ---------- Large Storage Unit Large Storage Unit > --- WEAPON ----------- Heavy EM Pulse Gun Heavy EM Pulse Gun > --- INVENTORY -------- Improved Ion Engine Light Treads Wheel Compact Wheel Improved Heat Sink Sensor Array Experimental Sensor Array Improved Targeting Computer Light Armor Plating Heavy EM Pulse Gun Heavy EM Pulse Gun Beam Rifle Beam Rifle Beam Rifle Particle Gun Grenade Launcher [Rating: 13] Favorites ----------- Power Improved Ion Engine Engine Improved Ion Engine Propulsion Wheel Treads Light Treads Leg Aluminum Leg Wheel Wheel Utility Large Storage Unit Storage Large Storage Unit Protection Light Armor Plating Weapon Heavy EM Pulse Gun Energy Gun Heavy EM Pulse Gun Ballistic Gun Assault Rifle Build | -11 -10 -10 -10 ------- Run | Scr Mat Min Exi Slots Evolved . | . . . . Power . | . . . . Propulsion . | . . . . Utility . | . . . . Weapon . | . . . . Parts Attached 35 | 7 22 . 6 Power 5 | 1 4 . . Engine 5 | 1 4 . . Core . | . . . . Reactor . | . . . . Propulsion 13 | 2 8 . 3 Treads 2 | . 1 . 1 Leg 2 | 2 . . . Wheel 9 | . 7 . 2 Hover . | . . . . Flight . | . . . . Utility 5 | 2 2 . 1 Device . | . . . . Storage 4 | 2 2 . . Processor . | . . . . Hackware . | . . . . Protection 1 | . . . 1 Artifact . | . . . . Weapon 12 | 2 8 . 2 Energy Gun 6 | 1 3 . 2 Energy Cannon . | . . . . Ballistic Gun 6 | 1 5 . . Ballistic Cannon . | . . . . Launcher . | . . . . Special Weapon . | . . . . Impact Weapon . | . . . . Slashing Weapon . | . . . . Piercing Weapon . | . . . . Special Melee Weapon . | . . . . Unidentified Prototypes . | . . . . Parts Lost 12 | . 2 . 10 Power 1 | . . . 1 Propulsion 5 | . 1 . 4 Utility 1 | . . . 1 Weapon 5 | . 1 . 4 Highest Loss Streak 10 | . 1 . 10 Average Slot Usage (%) 99 | . 99 100 95 Engine 13 | . 13 14 14 Wheel 26 | . 26 28 26 Storage 27 | . 28 28 27 Energy Gun 19 | . 14 28 26 Ballistic Gun 8 | . 12 . . Naked Turns . | . . . . Heaviest Build 45 | 17 45 45 45 Greatest Support 26 | 20 26 26 26 Greatest Overweight (x) 4 | 4 2 1 3 Average Overweight (x) . | . . 1 1 Largest Inventory Capacity 16 | 8 16 16 16 Average Capacity 14 | 6 15 16 15 Most Carried 16 | 8 16 16 16 Average Carried 13 | 4 13 15 15 Final Capacity 16 | 8 16 16 10 Final Carried 16 | 8 16 16 6 Class Distribution -------------------- 100% | Mutant Dominant Class ---------------- Mutant | -10/Materials Mutant | -10/Mines Mutant | -10/Exiles Resources | -11 -10 -10 -10 ----------- Run | Scr Mat Min Exi Matter Collected 751 | 270 443 5 33 Remotely . | . . . . Salvage Created 634 | 101 533 . . Parts 45 | 5 40 . . Haulers Intercepted 2 | . 2 . . Recyclers Shooed 1 | 1 . . . Parts Field Recycled . | . . . . Retrieved Matter . | . . . . Parts Self-Destructed . | . . . . Prevented . | . . . . Kills | -11 -10 -10 -10 ------- Run | Scr Mat Min Exi Combat Hostiles Destroyed 7 | . 7 . . Guns 7 | . 7 . . Classes Destroyed 6 | 2 4 . . Builder 1 | . 1 . . Tunneler 1 | 1 . . . Hauler 2 | . 2 . . Recycler 2 | 1 1 . . Watcher 3 | . 3 . . Grunt 7 | . 7 . . Best Kill Streak 4 | 1 4 . . Combat Bots Only 2 | . 2 . . Max Kills in Single Turn 1 | 1 1 . . Gunslinging . | . . . . Exploded . | . . . . Melee . | . . . . Uniques/NPCs Destroyed . | . . . . Combat | -11 -10 -10 -10 -------- Run | Scr Mat Min Exi Damage Taken 1381 | . 454 . 927 Core 262 | . 95 . 167 Absorbed by Shields . | . . . . Core Remaining (%) 100 | 100 . . . Volleys Fired 56 | 8 47 . 1 Largest 2 | 1 2 . 2 Hottest 90 | 40 90 . 90 Shots Fired 105 | 8 94 . 3 Gun 105 | 8 94 . 3 Cannon . | . . . . Launcher . | . . . . Special . | . . . . Kinetic 80 | . 80 . . Thermal . | . . . . Explosive . | . . . . Electromagnetic 25 | 8 14 . 3 Robot Hit Streak 12 | 5 12 . 1 Robot Miss Streak 5 | 2 5 . 1 Penetration Max . | . . . . Secondary Targets . | . . . . Shots Hit Robots 73 | 5 67 . 1 Core Hits 29 | 3 25 . 1 Critical Hits . | . . . . Critical Kills . | . . . . Critical Parts Destroyed . | . . . . Melee Attacks . | . . . . Impact . | . . . . Slashing . | . . . . Piercing . | . . . . Sneak Attacks . | . . . . Combat Hostiles . | . . . . Follow-up Attacks . | . . . . Damage Inflicted 972 | 102 858 . 12 Guns 972 | 102 858 . 12 Cannons . | . . . . Explosions . | . . . . Melee . | . . . . Ramming . | . . . . Kinetic 689 | . 689 . . Thermal . | . . . . Explosive . | . . . . Electromagnetic 283 | 102 169 . 12 Impact . | . . . . Slashing . | . . . . Piercing . | . . . . Highest Corruption 10 | . 7 7 10 Average Corruption 5 | . 5 7 7 Corruption Purged . | . . . . Effects 44 | . 25 11 8 Message Errors 13 | . 7 4 2 Matter Fused 11 | . 7 2 2 Heat Flow Errors 3 | . 2 1 . Energy Discharges 6 | . 3 2 1 Data Loss (minor) 4 | . 2 2 . Data Loss (major) 1 | . . . 1 Misfires 1 | . . . 1 Targeting Errors 5 | . 4 . 1 Overload Shots . | . . . . Overflow Damage . | . . . . Projectiles . | . . . . Explosions . | . . . . Melee . | . . . . Knockbacks . | . . . . Impact . | . . . . Kinetic . | . . . . Secondary . | . . . . Self-Inflicted Damage . | . . . . Shots . | . . . . Rammed . | . . . . Targets Rammed . | . . . . Kicked . | . . . . Crushed . | . . . . Highest Temperature 242 | . 190 242 33 Average Temperature 40 | . 28 129 11 Received Heat Transfer 306 | . 237 . 69 Siege Activations . | . . . . Robots Corrupted . | . . . . Combat Hostiles . | . . . . Parts Fried 2 | . 2 . . Impact Corruptions . | . . . . Robots Melted . | . . . . Combat Hostiles . | . . . . Parts Melted . | . . . . Heat Transferred . | . . . . Parts Sabotaged . | . . . . Parts Stolen . | . . . . Parts Stripped . | . . . . Power Chain Reactions . | . . . . Missiles Intercepted . | . . . . Alert | -11 -10 -10 -10 ------- Run | Scr Mat Min Exi Peak Influence 158 | 10 158 7 . Initial 6 | . 6 . . Average 34 | 3 51 . . Maximum Alert Level . | . . . . Low Security (%) 100 | 100 100 100 . Level 1 . | . . . . Level 2 . | . . . . Level 3 . | . . . . Level 4 . | . . . . Level 5 . | . . . . High Security . | . . . . Max Security . | . . . . Squads Dispatched 2 | . 2 . . Investigation 1 | . 1 . . Extermination . | . . . . Reinforcement 1 | . 1 . . Assault . | . . . . Garrison . | . . . . Intercept . | . . . . Construction Impeded . | . . . . Haulers Reinforced . | . . . . Stealth | -11 -10 -10 -10 --------- Run | Scr Mat Min Exi Distress Signals . | . . . . Communications Jammed . | . . . . Distress Signals . | . . . . Times Spotted 38 | . 16 . 22 Peak Tracking Total 13 | . 3 . 13 Tactical Retreats 3 | . 1 . 2 Traps | -11 -10 -10 -10 ------- Run | Scr Mat Min Exi Traps Triggered 10 | . 10 . . Indirectly . | . . . . Trap Hack Attempts . | . . . . Triggered . | . . . . Disarmed . | . . . . Reprogrammed . | . . . . Reused . | . . . . Traps Extracted . | . . . . Installed . | . . . . Triggered . | . . . . Machines | -11 -10 -10 -10 ---------- Run | Scr Mat Min Exi Machines Disabled 2 | . 1 . 1 Max in Single Turn 1 | . 1 . 1 Machines Sabotaged . | . . . . Garrisons Compromised . | . . . . Overloaded Fab Kills . | . . . . Fab Network Shutdowns . | . . . . Hacking | -11 -10 -10 -10 --------- Run | Scr Mat Min Exi Machines Accessed 8 | . 7 1 . Terminals 7 | . 6 1 . Fabricators . | . . . . Repair Stations . | . . . . Recycling Units 1 | . 1 . . Scanalyzers . | . . . . Garrison Access . | . . . . Total Hacks 18 | . 15 3 . Successful 12 | . 10 2 . Failed 6 | . 5 1 . Catastrophic 1 | . 1 . . Database Lockouts . | . . . . Manual 13 | . 11 2 . Terminals 17 | . 14 3 . Fabricators . | . . . . Repair Stations . | . . . . Recycling Units 1 | . 1 . . Scanalyzers . | . . . . Garrison Access . | . . . . Terminal Hacks 8 | . 6 2 . Robot Analysis 2 | . 2 . . Branch Access Points 1 | . 1 . . Emergency Access Points 1 | . 1 . . Unreport Threat 1 | . . 1 . Locate Traps 1 | . 1 . . Hauler Manifests 1 | . 1 . . Zone Layout 1 | . . 1 . Fabricator Hacks . | . . . . Repair Station Hacks . | . . . . Recycling Unit Hacks 1 | . 1 . . Retrieve Matter 1 | . 1 . . Scanalyzer . | . . . . Garrison Access Hacks . | . . . . Unauthorized Hacks 3 | . 3 . . Terminals 3 | . 3 . . Track 1 | . 1 . . Botnet 2 | . 2 . . Fabricators . | . . . . Repair Stations . | . . . . Recycling Units . | . . . . Scanalyzers . | . . . . Garrison Access . | . . . . Data Cores Recovered . | . . . . Used . | . . . . Hacking Detections 6 | . 5 1 . Full Trace Events . | . . . . Feedback Events . | . . . . Feedback Blocked . | . . . . Robot Schematics Acquired . | . . . . Robots Built . | . . . . Matter . | . . . . Time . | . . . . Total Robot Build Rating . | . . . . Part Schematics Acquired . | . . . . Parts Built . | . . . . Matter . | . . . . Time . | . . . . Total Part Build Rating . | . . . . Parts Repaired . | . . . . Time . | . . . . Parts Recycled . | . . . . Recycled Matter . | . . . . Retrieved Matter . | . . . . Retrieved Components . | . . . . Parts Scanalyzed . | . . . . Part Schematics Acquired . | . . . . Parts Damaged . | . . . . Bothacking | -11 -10 -10 -10 ------------ Run | Scr Mat Min Exi Used RIF Installer . | . . . . Robots Hacked . | . . . . Non-combat . | . . . . Combat . | . . . . Robot Hacks Applied . | . . . . Relay Couplers Released . | . . . . Robots Rewired . | . . . . Allies Hacked . | . . . . Hacks Repelled . | . . . . Allies | -11 -10 -10 -10 -------- Run | Scr Mat Min Exi Total Allies 3 | . . 3 . Largest Group 3 | . . 3 3 Highest-Rated Group 40 | . . 40 40 Highest-Rated Ally 16 | . . 16 16 Total Orders . | . . . . Ally Attacks 15 | . . . 15 Total Damage 162 | . . . 162 Kills 4 | . . . 4 Allies Corrupted . | . . . . Allies Melted . | . . . . Intel | -11 -10 -10 -10 ------- Run | Scr Mat Min Exi Robot Analysis Total 2 | . 2 . . Derelict Logs Recovered 1 | . . 1 . Drone Launches . | . . . . Drone Recoveries . | . . . . Exploration | -11 -10 -10 -10 ------------- Run | Scr Mat Min Exi Turns Passed 2006 | 172 1228 460 146 Spaces Moved 1313 | 112 764 301 136 Core 25 | 25 . . . Treads . | . . . . Legs 124 | 87 37 . . Wheels 1164 | . 727 301 136 Hover . | . . . . Flight . | . . . . Fastest Speed 50 | 50 100 100 90 Average Speed 102 | 120 101 100 100 Slowest Speed 250 | 250 150 100 110 Overloaded Moves . | . . . . Propulsion Burnouts . | . . . . Robots Hopped . | . . . . Cave-ins Triggered . | . . . . Exploration Rate (%) 49 | 6 88 62 43 Regions Visited 3 Branch Regions 2 Pre-discovered Areas 1 | . . 1 . Known Exits Taken 1 | . 1 . . Unknown Exits Taken 2 | 1 . 1 . Scrap Searched 1 | . . 1 . Spaces Dug . | . . . . Terrain Destroyed . | . . . . Melee . | . . . . Projectile . | . . . . AOE . | . . . . Terrain Rammed . | . . . . Walls Destroyed . | . . . . Machines Disabled . | . . . . Actions | -11 -10 -10 -10 --------- Run | Scr Mat Min Exi Total 1877 | 138 1135 460 144 Wait 413 | . 254 158 1 Move 1310 | 111 763 300 136 Hop . | . . . . Pick Up 40 | 11 28 1 . Fast Attach 9 | 5 4 . . Attach 15 | 2 8 . 5 Detach . | . . . . Swap 11 | . 10 . 1 Drop 23 | 1 21 1 . Fire 56 | 8 47 . 1 Melee . | . . . . Ram . | . . . . Kick . | . . . . Crush . | . . . . Escape Stasis . | . . . . Rewire . | . . . . Trap . | . . . . Miscellaneous . | . . . . Route ------- -11/Scrapyard -10/Materials (discovered 4 exits: [*Mat x2] / *Min x2) -10/Mines (discovered 3 exits: [*Mat x2] / [*Exi]) -10/Exiles (discovered 1 exit: [*Min]) History --------- Turn | Location | Event 5 | -11/Scrapyard | Discovered new exit (range 15) 173 | -11/Scrapyard | Entered Materials 258 | -10/Materials | Discovered new exit (range 16) 302 | -10/Materials | Build established: Mutant 618 | -10/Materials | Identified exit to Mines 866 | -10/Materials | Discovered new exit (range 10) 1363 | -10/Materials | Discovered new exit (range 3) 1401 | -10/Materials | Entered Mines 1438 | -10/Mines | Assisted by bots powering up and referring to "LRC-V3" 1587 | -10/Mines | Found a damaged Exp. Sensor Array with a note attached 1590 | -10/Mines | Found Prototype Device 1708 | -10/Mines | Learned location of Storage (-9) 1729 | -10/Mines | Deemed a non-threat by the Exiles lab entrance 1729 | -10/Mines | Discovered new exit (range 5) 1763 | -10/Mines | Discovered new exit (range 5) 1766 | -10/Mines | Discovered new exit (range 14) 1861 | -10/Mines | Entered Exiles 1861 | -10/Exiles | Accompanied by 3 allies 1874 | -10/Exiles | Discovered new exit (range 15) 1889 | -10/Exiles | Met 8R-AWN 1906 | -10/Exiles | Met EX-HEX 1969 | -10/Exiles | Visited The Gauntlet 1974 | -10/Exiles | Attacked by the Exiles 1991 | -10/Exiles | System corruption reached 10% 1996 | -10/Exiles | Core integrity fell below 50% 2003 | -10/Exiles | Core integrity fell below 20% 2007 | -10/Exiles | Destroyed by DAS Turret with DAS Cannon Last Messages --------------- 01995_ Com. Wheel destroyed. 01996_ Acquired 12 matter. 01998_ Machine disabled. 01998_ Hvy. EM Pulse Gun destroyed. 01998_ Lgt. Armor Plating destroyed. 01998_ Hvy. EM Pulse Gun destroyed. 01999_ Wheel destroyed. 02001_ XB-5GY(z) destroyed. 02001_ Knocked back. 02001_ as-50141 system corrupted by crushing effect. 02004_ System corrupted: Substantial component data lost. 02004_ Imp. Ion Engine destroyed. 02004_ Acquired 21 matter. 02005_ Machine disabled. 02005_ Wheel destroyed. 02005_ Lgt. Treads destroyed. 02006_ as-24553 destroyed. 02006_ as-70097 destroyed. 02007_ Beam Rifle destroyed. 02007_ Knocked back. Map ----- +----------------------------------------------------+ | ?????????????????????????????????????????????????? | | ?????????????????????????????????????????????????? | | ?????????????????????????????????????????????????? | | ?????????????????????????????????????????????????? | | ????????????????????????????????????????????###""? | | ????????????????????????????????????????? " " | | ??????????????????????????????????????? " | | ?????????????????????????????????????? | | ?????????????????????????????????????? | | ?????????????????????????????????????? | | ????????????????????? ? ????????????? | | ??????????????????? ?????????????? | | ?????????????????? ??????????????? | | ???????????????? ??????????????""" | | ??????????????" ""?????????????#""" | | ?????????????" ""?????????????#"""" | | ?????????????" ""????????????##"" | | ????????????" ########??####"""" | | ????????????"" ##aaa####""" | | ????????????" """" | | ????????????"" t | | ????????????""" | | ????????????# | | ????????????#" " "" | | ????????????#"""" ""## ##""" " " " | | ????????????#"" @ ""#### ######""" "" | | ????????????#" """"##??# #????###"""" | | ????????????#""" ! """#??## ####???##### | | ?????????????# *%aaa ""##??#! "!#???????? | | ?????????????#"" c """##???#" !#???????? | | ?????????????##""" % ##????#" "#???????? | | ??????????????##"""" ##?????#!!""!"#???????? | | ???????????????### #??????########???????? | | ?????????????????##### * ##?????????????????????? | | ?????????????????????##[[ #??????????????????????? | | ??????????????????????#[! #??????????????????????? | | ??????????????????????# a #??????????????????????? | | ??????????????????????# #??????????????????????? | | ??????????????????????# * #??????????????????????? | | ??????????????????????#!% #??????????????????????? | | ??????????????????????# = #??????????????????????? | | ??????????????????????# = #??????????????????????? | | ??????????????????????#!% #??????????????????????? | | ??????????????????????#= #??????????????????????? | | ??????????????????#####%* ########???????????????? | | ?????????????" """"""!%%"""""""#???????????????? | | ????????????" %*=* "#"" "???????????? | | ??????????? =*=%! " ""??????????? | | ??????????? ! " " "??????????? | | ??????????? " ""???????????? | +----------------------------------------------------+ Best States ------------- Heat Dissipation 25 Energy Generation 12 Energy Capacity 265 Matter Stores 300 Matter Capacity 300 Sight Range 16 Terrain Scan Density 10 Evasion (%) 50 Recoil Reduction 1 Item Schematics ----------------- None Robot Schematics ------------------ None Fabricated ------------ Nothing Alien Tech Used ----------------- None Achievements -------------- None Challenges ------------ None Game ------ Seed CoilLongswordTriangulator Manual? 0 Play Time 00:48:19 Cumulative 56.0 hours Start 2021.12.10 @ 22:38:04 End 2021.12.11 @ 12:27:22 Sessions 7 Manual Loads 0 Difficulty Rogue Special Mode None Game No. 7 Rogue 7 Adventurer 0 Explorer 0 Win Type - Total 0 Types 0/0/0/0/0/0/0/0/0 Lore% 24 Gallery% 37 Achievement% 32 Wizard Run 0 Options --------- ASCII 0 Keyboard 0 Movement Mouse Keybinds 0 Fullscreen 1 Font 18/Terminus Map View 76x50 Tactical HUD 1 Map Filters NONE Filters NONE Steam 1 RUN: 1e90f56c-4ceb-4972-b025-88e27c0b8204